[Event "*** Titled Tuesday Blitz"]
[Site "Chess.com"]
[Date "2020.04.21"]
[Round "2"]
[White "annamaja"]
[Black "MilanovicDan"]
[Result "0-1"]
[WhiteElo "2203"]
[BlackElo "2436"]
[TimeControl "180+1"]
[EndTime "10:18:39 PDT"]
[Termination "MilanovicDan won by checkmate"]

1. e4 {[%clk 0:02:54.6]} 1... d5 {[%clk 0:02:59.5]} 2. exd5 {[%clk 0:02:54.4]}
2... Qxd5 {[%clk 0:02:58.8]} 3. Nc3 {[%clk 0:02:54.4]} 3... Qd6 {[%clk
0:02:59.1]} 4. d4 {[%clk 0:02:54.6]} 4... Nf6 {[%clk 0:02:59.1]} 5. Nf3 {[%clk
0:02:55.2]} 5... c6 {[%clk 0:02:58.3]} 6. Bc4 {[%clk 0:02:53.6]} 6... Be6 {[%clk
0:02:49.3]} 7. Qe2 {[%clk 0:02:44.5]} 7... Bxc4 {[%clk 0:02:47.3]} 8. Qxc4
{[%clk 0:02:45.4]} 8... e6 {[%clk 0:02:46.3]} 9. O-O {[%clk 0:02:43.9]} 9... Be7
{[%clk 0:02:44.7]} 10. a4 {[%clk 0:02:32.7]} 10... a5 {[%clk 0:02:40.6]} 11. Ne2
{[%clk 0:02:18.4]} 11... O-O {[%clk 0:02:38.4]} 12. Bf4 {[%clk 0:02:17.7]} 12...
Qb4 {[%clk 0:02:33.8]} 13. Qd3 {[%clk 0:01:57.7]} 13... Nbd7 {[%clk 0:02:31]}
14. Bc7 {[%clk 0:01:40.4]} 14... Bd8 {[%clk 0:02:27.4]} 15. c3 {[%clk 0:01:33]}
15... Qe7 {[%clk 0:02:26.2]} 16. Bg3 {[%clk 0:01:19.3]} 16... Rc8 {[%clk
0:02:26.1]} 17. Nf4 {[%clk 0:01:08.9]} 17... Bc7 {[%clk 0:02:23.8]} 18. Rfe1
{[%clk 0:01:04.2]} 18... Rfd8 {[%clk 0:02:21.7]} 19. Ng5 {[%clk 0:01:01.4]}
19... Nf8 {[%clk 0:02:09.2]} 20. Qc2 {[%clk 0:00:43.7]} 20... Qd7 {[%clk
0:01:42.5]} 21. Rad1 {[%clk 0:00:32.7]} 21... Bd6 {[%clk 0:01:41.5]} 22. Nd3
{[%clk 0:00:25.1]} 22... Bxg3 {[%clk 0:01:21.5]} 23. hxg3 {[%clk 0:00:23.6]}
23... Rc7 {[%clk 0:01:13.5]} 24. Ne5 {[%clk 0:00:23.3]} 24... Qc8 {[%clk
0:01:10.7]} 25. Nc4 {[%clk 0:00:18]} 25... Qa8 {[%clk 0:01:01.9]} 26. Re5 {[%clk
0:00:16.9]} 26... Nd5 {[%clk 0:00:43.9]} 27. Nf3 {[%clk 0:00:16.5]} 27... b5
{[%clk 0:00:42]} 28. Ne3 {[%clk 0:00:14]} 28... Qb7 {[%clk 0:00:40.8]} 29. Nxd5
{[%clk 0:00:13.2]} 29... cxd5 {[%clk 0:00:38.7]} 30. axb5 {[%clk 0:00:12.7]}
30... Qxb5 {[%clk 0:00:38.2]} 31. Qe2 {[%clk 0:00:13.1]} 31... Qxe2 {[%clk
0:00:36.9]} 32. Rxe2 {[%clk 0:00:14]} 32... Rb7 {[%clk 0:00:36.4]} 33. Ra1
{[%clk 0:00:14.3]} 33... Rb5 {[%clk 0:00:36.1]} 34. Ne5 {[%clk 0:00:14.5]} 34...
Rd6 {[%clk 0:00:30.8]} 35. Ra2 {[%clk 0:00:11.2]} 35... Rdb6 {[%clk 0:00:27.8]}
36. Kf1 {[%clk 0:00:09.4]} 36... f6 {[%clk 0:00:26.7]} 37. Nd3 {[%clk
0:00:08.2]} 37... Nd7 {[%clk 0:00:26.7]} 38. Nf4 {[%clk 0:00:08]} 38... Kf7
{[%clk 0:00:26.3]} 39. Ke1 {[%clk 0:00:07.7]} 39... g5 {[%clk 0:00:18.1]} 40.
Nd3 {[%clk 0:00:07.7]} 40... Ke7 {[%clk 0:00:17]} 41. Kd1 {[%clk 0:00:07.5]}
41... Kd6 {[%clk 0:00:17]} 42. Kc2 {[%clk 0:00:07.6]} 42... e5 {[%clk
0:00:17.2]} 43. dxe5+ {[%clk 0:00:07.2]} 43... fxe5 {[%clk 0:00:17.5]} 44. Re1
{[%clk 0:00:07.5]} 44... e4 {[%clk 0:00:17.5]} 45. Nc1 {[%clk 0:00:07.7]} 45...
Ne5 {[%clk 0:00:17.2]} 46. Rh1 {[%clk 0:00:07.4]} 46... Rb7 {[%clk 0:00:17.2]}
47. Rh6+ {[%clk 0:00:07]} 47... Kc5 {[%clk 0:00:17]} 48. Rh5 {[%clk 0:00:05.7]}
48... Rg7 {[%clk 0:00:16.4]} 49. Rxa5 {[%clk 0:00:03.7]} 49... Rxa5 {[%clk
0:00:15.7]} 50. b4+ {[%clk 0:00:04.3]} 50... Kb5 {[%clk 0:00:16.2]} 51. bxa5
{[%clk 0:00:04.8]} 51... Kxa5 {[%clk 0:00:17.1]} 52. Nb3+ {[%clk 0:00:05]} 52...
Kb6 {[%clk 0:00:17]} 53. Nd4 {[%clk 0:00:04.9]} 53... Ng4 {[%clk 0:00:14.5]} 54.
f3 {[%clk 0:00:04.3]} 54... Ne3+ {[%clk 0:00:13]} 55. Kd2 {[%clk 0:00:04.1]}
55... Nc4+ {[%clk 0:00:12.9]} 56. Ke2 {[%clk 0:00:04]} 56... Ra7 {[%clk
0:00:11.5]} 57. fxe4 {[%clk 0:00:04.2]} 57... Ra2+ {[%clk 0:00:11.5]} 58. Kd3
{[%clk 0:00:04.2]} 58... Ne5+ {[%clk 0:00:11.3]} 59. Ke3 {[%clk 0:00:03.7]}
59... Nc4+ {[%clk 0:00:11.4]} 60. Kd3 {[%clk 0:00:04]} 60... Rd2# {[%clk
0:00:11.4]} 0-1

[Event "*** Titled Tuesday Blitz"]
[Site "Chess.com"]
[Date "2020.04.21"]
[Round "2"]
[White "nonscitis"]
[Black "FeketeBarika"]
[Result "1/2-1/2"]
[WhiteElo "2628"]
[BlackElo "2277"]
[TimeControl "180+1"]
[EndTime "10:18:42 PDT"]
[Termination "Game drawn by repetition"]

1. d4 {[%clk 0:03:00.4]} 1... e6 {[%clk 0:02:57.8]} 2. Nf3 {[%clk 0:03:00.6]}
2... Nf6 {[%clk 0:02:58.7]} 3. c4 {[%clk 0:03:00.3]} 3... d5 {[%clk 0:02:51.5]}
4. g3 {[%clk 0:02:56.2]} 4... Be7 {[%clk 0:02:51]} 5. Bg2 {[%clk 0:02:56.7]}
5... O-O {[%clk 0:02:50.1]} 6. O-O {[%clk 0:02:56.7]} 6... dxc4 {[%clk
0:02:46.4]} 7. Qc2 {[%clk 0:02:56.5]} 7... a6 {[%clk 0:02:38.3]} 8. a4 {[%clk
0:02:54.2]} 8... Bd7 {[%clk 0:02:35.1]} 9. Qxc4 {[%clk 0:02:52.2]} 9... Bc6
{[%clk 0:02:32.8]} 10. Bg5 {[%clk 0:02:52.1]} 10... h6 {[%clk 0:02:26.8]} 11.
Bxf6 {[%clk 0:02:50.6]} 11... Bxf6 {[%clk 0:02:27.7]} 12. Nc3 {[%clk 0:02:33.2]}
12... a5 {[%clk 0:02:25.5]} 13. Rfd1 {[%clk 0:02:28.7]} 13... Na6 {[%clk
0:02:14.3]} 14. d5 {[%clk 0:02:28.5]} 14... exd5 {[%clk 0:02:02.4]} 15. Nxd5
{[%clk 0:02:28.4]} 15... Bxd5 {[%clk 0:02:02.3]} 16. Rxd5 {[%clk 0:02:27.6]}
16... Qe7 {[%clk 0:02:00.9]} 17. Rb5 {[%clk 0:02:02.8]} 17... c6 {[%clk
0:01:53.5]} 18. Rb3 {[%clk 0:01:55.8]} 18... Nb4 {[%clk 0:01:41.2]} 19. e4
{[%clk 0:01:44.4]} 19... Qc7 {[%clk 0:01:29.1]} 20. Re1 {[%clk 0:01:41.1]} 20...
Rfe8 {[%clk 0:01:24.2]} 21. Nd4 {[%clk 0:01:39.7]} 21... Bxd4 {[%clk 0:01:15.6]}
22. Qxd4 {[%clk 0:01:39.1]} 22... Rad8 {[%clk 0:01:16.3]} 23. Qc4 {[%clk
0:01:34.6]} 23... Rd2 {[%clk 0:01:04.4]} 24. Re2 {[%clk 0:01:18.3]} 24... Rd1+
{[%clk 0:01:03.8]} 25. Bf1 {[%clk 0:01:18.7]} 25... Qd7 {[%clk 0:00:57.6]} 26.
Kg2 {[%clk 0:01:15.5]} 26... b5 {[%clk 0:00:47.8]} 27. axb5 {[%clk 0:01:10.9]}
27... cxb5 {[%clk 0:00:48.7]} 28. Qc5 {[%clk 0:01:01.6]} 28... Rxf1 {[%clk
0:00:44.4]} 29. Rxb4 {[%clk 0:00:51.9]} 29... Ra1 {[%clk 0:00:20.4]} 30. Qxb5
{[%clk 0:00:43.6]} 30... Qd8 {[%clk 0:00:19.2]} 31. Rd4 {[%clk 0:00:39.8]} 31...
Qxd4 {[%clk 0:00:18]} 32. Qxe8+ {[%clk 0:00:39.8]} 32... Kh7 {[%clk 0:00:18.6]}
33. Qxf7 {[%clk 0:00:37.3]} 33... Qd1 {[%clk 0:00:18.5]} 34. Qf5+ {[%clk
0:00:24.7]} 34... Kg8 {[%clk 0:00:18.5]} 35. Qc8+ {[%clk 0:00:24.3]} 35... Kh7
{[%clk 0:00:18.6]} 36. Qf5+ {[%clk 0:00:20.3]} 36... Kg8 {[%clk 0:00:18.1]} 37.
Kf3 {[%clk 0:00:18.7]} 37... Qd3+ {[%clk 0:00:16.5]} 38. Re3 {[%clk 0:00:17.8]}
38... Qd1+ {[%clk 0:00:16.7]} 39. Kf4 {[%clk 0:00:18.2]} 39... g5+ {[%clk
0:00:15.5]} 40. Ke5 {[%clk 0:00:17.4]} 40... Qd8 {[%clk 0:00:11]} 41. Qe6+
{[%clk 0:00:17.1]} 41... Kg7 {[%clk 0:00:09.6]} 42. Kf5 {[%clk 0:00:17.4]} 42...
Qf8+ {[%clk 0:00:09.2]} 43. Kg4 {[%clk 0:00:17.7]} 43... Qxf2 {[%clk 0:00:08.8]}
44. Qe5+ {[%clk 0:00:17.5]} 44... Kg6 {[%clk 0:00:07.7]} 45. Qe6+ {[%clk
0:00:17.5]} 45... Kg7 {[%clk 0:00:07.1]} 46. Qe5+ {[%clk 0:00:17.5]} 46... Kg8
{[%clk 0:00:06.2]} 47. Qb8+ {[%clk 0:00:14.2]} 47... Kg7 {[%clk 0:00:05.8]} 48.
Qa7+ {[%clk 0:00:12.7]} 48... Kg6 {[%clk 0:00:05.1]} 49. Qb6+ {[%clk 0:00:12.8]}
49... Kg7 {[%clk 0:00:05.1]} 50. Qc7+ {[%clk 0:00:13]} 50... Kg6 {[%clk
0:00:05.2]} 51. Qd6+ {[%clk 0:00:13]} 51... Kg7 {[%clk 0:00:05.4]} 52. Qe7+
{[%clk 0:00:13.4]} 52... Kg6 {[%clk 0:00:05.6]} 53. Qe6+ {[%clk 0:00:13.7]}
53... Kg7 {[%clk 0:00:05.8]} 1/2-1/2

[Event "*** Titled Tuesday Blitz"]
[Site "Chess.com"]
[Date "2020.04.21"]
[Round "2"]
[White "Igor_Lysyj"]
[Black "JiaHaoxiang"]
[Result "1-0"]
[WhiteElo "2809"]
[BlackElo "2560"]
[TimeControl "180+1"]
[EndTime "10:18:45 PDT"]
[Termination "Igor_Lysyj won by resignation"]

1. d4 {[%clk 0:03:00]} 1... d5 {[%clk 0:02:58.3]} 2. c4 {[%clk 0:02:59.6]} 2...
dxc4 {[%clk 0:02:58.6]} 3. e3 {[%clk 0:02:59]} 3... Nf6 {[%clk 0:02:57.9]} 4.
Bxc4 {[%clk 0:02:58.2]} 4... e6 {[%clk 0:02:58.3]} 5. Nf3 {[%clk 0:02:57]} 5...
a6 {[%clk 0:02:58.6]} 6. O-O {[%clk 0:02:56.6]} 6... b5 {[%clk 0:02:58.7]} 7.
Be2 {[%clk 0:02:54.1]} 7... Bb7 {[%clk 0:02:58.9]} 8. a4 {[%clk 0:02:51]} 8...
b4 {[%clk 0:02:58.7]} 9. Nbd2 {[%clk 0:02:50.7]} 9... Nbd7 {[%clk 0:02:55.3]}
10. b3 {[%clk 0:02:51]} 10... c5 {[%clk 0:02:51.7]} 11. Bb2 {[%clk 0:02:50.4]}
11... cxd4 {[%clk 0:02:50.9]} 12. Nxd4 {[%clk 0:02:49.7]} 12... Be7 {[%clk
0:02:47.4]} 13. Bf3 {[%clk 0:02:45.6]} 13... Bxf3 {[%clk 0:02:42.5]} 14. Qxf3
{[%clk 0:02:44.5]} 14... O-O {[%clk 0:02:42]} 15. Nc6 {[%clk 0:02:41.3]} 15...
Qe8 {[%clk 0:02:42.2]} 16. Rac1 {[%clk 0:02:39.7]} 16... Nd5 {[%clk 0:02:32.4]}
17. Ne4 {[%clk 0:02:25.5]} 17... f5 {[%clk 0:02:26.2]} 18. Qg3 {[%clk 0:02:17]}
18... N7f6 {[%clk 0:02:21.6]} 19. Nxe7+ {[%clk 0:02:03.4]} 19... Qxe7 {[%clk
0:02:13.2]} 20. Nxf6+ {[%clk 0:02:02.7]} 20... Nxf6 {[%clk 0:01:56.3]} 21. Rc7
{[%clk 0:02:01]} 21... Nd7 {[%clk 0:01:56.4]} 22. Rd1 {[%clk 0:01:52.8]} 22...
Rad8 {[%clk 0:01:55.2]} 23. Bxg7 {[%clk 0:01:36.1]} 23... Qxg7 {[%clk
0:01:53.2]} 24. Qxg7+ {[%clk 0:01:30.8]} 24... Kxg7 {[%clk 0:01:54.1]} 25.
Rcxd7+ {[%clk 0:01:28.3]} 25... Rxd7 {[%clk 0:01:54.1]} 26. Rxd7+ {[%clk
0:01:28.2]} 26... Kf6 {[%clk 0:01:54.3]} 27. Rxh7 {[%clk 0:01:12.6]} 27... Rc8
{[%clk 0:01:53.9]} 28. g3 {[%clk 0:01:08.3]} 28... Rc3 {[%clk 0:01:53.4]} 29.
Ra7 {[%clk 0:01:08]} 29... Rxb3 {[%clk 0:01:52.8]} 30. Rxa6 {[%clk 0:01:06.7]}
30... Ra3 {[%clk 0:01:50.8]} 31. a5 {[%clk 0:01:03.2]} 31... b3 {[%clk
0:01:46.3]} 32. Rb6 {[%clk 0:01:03.1]} 32... Rxa5 {[%clk 0:01:46]} 33. Rxb3
{[%clk 0:01:02.8]} 33... Ra4 {[%clk 0:01:45.5]} 34. Kg2 {[%clk 0:01:03.1]} 34...
Rc4 {[%clk 0:01:45.3]} 35. Rd3 {[%clk 0:01:02.4]} 35... Rb4 {[%clk 0:01:42.6]}
36. Rd4 {[%clk 0:01:01.7]} 36... Rb3 {[%clk 0:01:42.8]} 37. Ra4 {[%clk
0:01:01.4]} 37... Rc3 {[%clk 0:01:42.8]} 38. e4 {[%clk 0:01:00.1]} 38... Rc5
{[%clk 0:01:37.1]} 39. exf5 {[%clk 0:00:59.6]} 39... exf5 {[%clk 0:01:36.5]} 40.
h4 {[%clk 0:00:56.9]} 40... Rc6 {[%clk 0:01:33.4]} 41. Ra5 {[%clk 0:00:54.2]}
41... Rb6 {[%clk 0:01:32.8]} 42. Ra4 {[%clk 0:00:52.2]} 42... Kg6 {[%clk
0:01:32.3]} 43. Ra8 {[%clk 0:00:51.3]} 43... Rc6 {[%clk 0:01:32.1]} 44. Rg8+
{[%clk 0:00:50.7]} 44... Kf7 {[%clk 0:01:30.9]} 45. Rd8 {[%clk 0:00:49.3]} 45...
Kg6 {[%clk 0:01:30.7]} 46. Rd4 {[%clk 0:00:41.2]} 46... Rb6 {[%clk 0:01:29.8]}
47. Kh3 {[%clk 0:00:40.7]} 47... Rb2 {[%clk 0:01:19.1]} 48. Rd6+ {[%clk
0:00:37.8]} 48... Kg7 {[%clk 0:01:19.3]} 49. Kg2 {[%clk 0:00:37.6]} 49... Rb4
{[%clk 0:01:18]} 50. Kf3 {[%clk 0:00:36.7]} 50... Ra4 {[%clk 0:01:15.6]} 51. h5
{[%clk 0:00:34.6]} 51... Rb4 {[%clk 0:01:15.8]} 52. Rg6+ {[%clk 0:00:33.2]}
52... Kf7 {[%clk 0:01:15.1]} 53. Kg2 {[%clk 0:00:31.6]} 53... Rc4 {[%clk
0:01:12.6]} 54. f4 {[%clk 0:00:30.6]} 54... Rc2+ {[%clk 0:01:11.5]} 55. Kh3
{[%clk 0:00:30]} 55... Rc1 {[%clk 0:01:01.9]} 56. Kh4 {[%clk 0:00:28.1]} 56...
Rg1 {[%clk 0:01:01.3]} 57. Ra6 {[%clk 0:00:26.4]} 57... Kg7 {[%clk 0:00:59.9]}
58. h6+ {[%clk 0:00:24.9]} 58... Kh7 {[%clk 0:00:59.5]} 59. Rf6 {[%clk
0:00:23.8]} 59... Rh1+ {[%clk 0:00:56.9]} 60. Kg5 {[%clk 0:00:22.8]} 60... Rh3
{[%clk 0:00:57.2]} 61. Rf7+ {[%clk 0:00:20.6]} 61... Kg8 {[%clk 0:00:55.5]} 62.
Rg7+ {[%clk 0:00:20.4]} 62... Kh8 {[%clk 0:00:55.8]} 63. Kxf5 {[%clk 0:00:20.6]}
63... Rxh6 {[%clk 0:00:52.6]} 64. Rg5 {[%clk 0:00:20.6]} 64... Ra6 {[%clk
0:00:51.8]} 65. Kg4 {[%clk 0:00:21]} 65... Kh7 {[%clk 0:00:52]} 66. Rb5 {[%clk
0:00:21.3]} 66... Kg6 {[%clk 0:00:52]} 67. Kh4 {[%clk 0:00:21.5]} 67... Ra4
{[%clk 0:00:51.6]} 68. Rb6+ {[%clk 0:00:20.9]} 68... Kf5 {[%clk 0:00:52]} 69.
Rb5+ {[%clk 0:00:20.5]} 69... Kg6 {[%clk 0:00:52.1]} 70. Rc5 {[%clk 0:00:20.4]}
70... Rb4 {[%clk 0:00:52.3]} 71. Kg4 {[%clk 0:00:20.3]} 71... Ra4 {[%clk
0:00:52.3]} 72. Rc6+ {[%clk 0:00:20]} 72... Kf7 {[%clk 0:00:52.3]} 73. Kg5
{[%clk 0:00:19.7]} 73... Ra5+ {[%clk 0:00:52.1]} 74. f5 {[%clk 0:00:19.9]} 74...
Ra4 {[%clk 0:00:52.8]} 75. g4 {[%clk 0:00:20.1]} 75... Rb4 {[%clk 0:00:52.2]}
76. Rc7+ {[%clk 0:00:20]} 76... Ke8 {[%clk 0:00:52.6]} 77. f6 {[%clk 0:00:19.6]}
77... Kf8 {[%clk 0:00:51.8]} 78. Kf5 {[%clk 0:00:19]} 78... Rc4 {[%clk
0:00:50.3]} 79. Rxc4 {[%clk 0:00:17.1]} 1-0

[Event "*** Titled Tuesday Blitz"]
[Site "Chess.com"]
[Date "2020.04.21"]
[Round "2"]
[White "Treacherous_horse64"]
[Black "1f3_2g41-0"]
[Result "1-0"]
[WhiteElo "2422"]
[BlackElo "2157"]
[TimeControl "180+1"]
[EndTime "10:18:49 PDT"]
[Termination "Treacherous_horse64 won by resignation"]

1. d4 {[%clk 0:02:59.9]} 1... Nf6 {[%clk 0:02:58.9]} 2. Nf3 {[%clk 0:02:59.2]}
2... g6 {[%clk 0:02:56.4]} 3. Nbd2 {[%clk 0:02:57.6]} 3... d5 {[%clk 0:02:55]}
4. e3 {[%clk 0:02:57.2]} 4... Bg7 {[%clk 0:02:54.1]} 5. b4 {[%clk 0:02:56.5]}
5... O-O {[%clk 0:02:52.5]} 6. c4 {[%clk 0:02:55.7]} 6... e6 {[%clk 0:02:51.3]}
7. Bd3 {[%clk 0:02:44.5]} 7... c6 {[%clk 0:02:39.5]} 8. O-O {[%clk 0:02:43.2]}
8... a5 {[%clk 0:02:30.5]} 9. b5 {[%clk 0:02:40.2]} 9... cxb5 {[%clk 0:02:28.5]}
10. cxb5 {[%clk 0:02:41.1]} 10... Nbd7 {[%clk 0:02:22.6]} 11. a4 {[%clk
0:02:39.5]} 11... Nb6 {[%clk 0:02:21]} 12. Qb3 {[%clk 0:02:35.5]} 12... Bd7
{[%clk 0:02:08.3]} 13. Ba3 {[%clk 0:02:34.1]} 13... Re8 {[%clk 0:02:06.5]} 14.
Rfc1 {[%clk 0:02:33.3]} 14... Bf8 {[%clk 0:02:05.6]} 15. Bc5 {[%clk 0:02:22.7]}
15... Rc8 {[%clk 0:01:50.6]} 16. Ne5 {[%clk 0:02:09.5]} 16... h5 {[%clk
0:01:22.7]} 17. Ndf3 {[%clk 0:02:02.5]} 17... Ng4 {[%clk 0:01:19.9]} 18. Nxg4
{[%clk 0:01:49.6]} 18... hxg4 {[%clk 0:01:15.6]} 19. Ne5 {[%clk 0:01:49.2]}
19... Nc4 {[%clk 0:00:45]} 20. Nxd7 {[%clk 0:01:18.9]} 20... Qxd7 {[%clk
0:00:39.3]} 21. Bxf8 {[%clk 0:01:15.5]} 21... Kxf8 {[%clk 0:00:31.6]} 22. Bxc4
{[%clk 0:01:15.4]} 22... dxc4 {[%clk 0:00:31.7]} 23. Rxc4 {[%clk 0:01:16.3]}
23... Qd5 {[%clk 0:00:31.1]} 24. Rac1 {[%clk 0:01:16.2]} 24... Rxc4 {[%clk
0:00:30.1]} 25. Qxc4 {[%clk 0:01:16.2]} 25... Qe4 {[%clk 0:00:28.7]} 26. Qc2
{[%clk 0:01:01.8]} 26... Qd5 {[%clk 0:00:26.1]} 27. Qc5+ {[%clk 0:00:58.6]}
27... Qxc5 {[%clk 0:00:23.3]} 28. Rxc5 {[%clk 0:00:59.5]} 28... b6 {[%clk
0:00:21.1]} 29. Rc7 {[%clk 0:00:56.3]} 29... Rd8 {[%clk 0:00:19.3]} 30. Kf1
{[%clk 0:00:52]} 30... Ke8 {[%clk 0:00:18.3]} 31. Rc6 {[%clk 0:00:47.6]} 31...
Rb8 {[%clk 0:00:17.9]} 32. Ke2 {[%clk 0:00:42.8]} 32... Kd7 {[%clk 0:00:17.5]}
33. e4 {[%clk 0:00:34.3]} 33... Rh8 {[%clk 0:00:16.8]} 34. Rxb6 {[%clk
0:00:34.2]} 34... Rxh2 {[%clk 0:00:16]} 35. g3 {[%clk 0:00:34.1]} 35... f5
{[%clk 0:00:09.7]} 36. e5 {[%clk 0:00:33.6]} 36... f4 {[%clk 0:00:09.6]} 37.
gxf4 {[%clk 0:00:24.1]} 37... g3 {[%clk 0:00:09.8]} 38. Rd6+ {[%clk 0:00:17.4]}
38... Ke7 {[%clk 0:00:09.6]} 39. Kf1 {[%clk 0:00:14.9]} 39... Rxf2+ {[%clk
0:00:08]} 40. Kg1 {[%clk 0:00:15.3]} 40... Rxf4 {[%clk 0:00:08.4]} 41. Kg2
{[%clk 0:00:15.7]} 41... Rf2+ {[%clk 0:00:05.9]} 42. Kxg3 {[%clk 0:00:15.9]}
42... Ra2 {[%clk 0:00:06.4]} 43. Ra6 {[%clk 0:00:10.1]} 43... Rxa4 {[%clk
0:00:06.5]} 44. Ra7+ {[%clk 0:00:06.6]} 44... Kd8 {[%clk 0:00:06]} 45. Kf4
{[%clk 0:00:06.5]} 45... Rxd4+ {[%clk 0:00:05]} 46. Kg5 {[%clk 0:00:07]} 46...
Rd5 {[%clk 0:00:05.7]} 47. Kf6 {[%clk 0:00:07.1]} 47... Rxb5 {[%clk 0:00:05.5]}
48. Kxe6 {[%clk 0:00:07.3]} 48... g5 {[%clk 0:00:04.8]} 49. Kf6 {[%clk
0:00:05.5]} 49... g4 {[%clk 0:00:04.1]} 50. e6 {[%clk 0:00:05.2]} 50... Rb6
{[%clk 0:00:03]} 51. Kf7 {[%clk 0:00:05.4]} 51... g3 {[%clk 0:00:03.1]} 52. e7+
{[%clk 0:00:05.5]} 1-0

[Event "*** Titled Tuesday Blitz"]
[Site "Chess.com"]
[Date "2020.04.21"]
[Round "2"]
[White "zmeeed67"]
[Black "tamarozi99"]
[Result "1-0"]
[WhiteElo "2379"]
[BlackElo "1999"]
[TimeControl "180+1"]
[EndTime "10:18:49 PDT"]
[Termination "zmeeed67 won on time"]

1. d4 {[%clk 0:03:00.9]} 1... Nf6 {[%clk 0:02:59.3]} 2. c4 {[%clk 0:03:01]} 2...
g6 {[%clk 0:02:59.4]} 3. Nc3 {[%clk 0:03:01.4]} 3... Bg7 {[%clk 0:02:58.9]} 4.
Nf3 {[%clk 0:03:02]} 4... O-O {[%clk 0:02:58.2]} 5. Bg5 {[%clk 0:03:02.5]} 5...
d6 {[%clk 0:02:55.9]} 6. e3 {[%clk 0:03:02.8]} 6... Nbd7 {[%clk 0:02:55.1]} 7.
h3 {[%clk 0:03:02.7]} 7... b6 {[%clk 0:02:55.1]} 8. Be2 {[%clk 0:03:02.2]} 8...
Bb7 {[%clk 0:02:55.1]} 9. d5 {[%clk 0:03:02.3]} 9... a5 {[%clk 0:02:46.5]} 10.
O-O {[%clk 0:03:01.7]} 10... Nc5 {[%clk 0:02:46.5]} 11. Qc2 {[%clk 0:03:01.4]}
11... h6 {[%clk 0:02:37.1]} 12. Bh4 {[%clk 0:03:01]} 12... Qe8 {[%clk
0:02:36.9]} 13. Rad1 {[%clk 0:02:54.7]} 13... e5 {[%clk 0:02:23.2]} 14. b3
{[%clk 0:02:50.9]} 14... Nh5 {[%clk 0:02:00.6]} 15. Nd2 {[%clk 0:02:48]} 15...
f5 {[%clk 0:01:41.7]} 16. Bxh5 {[%clk 0:02:45.8]} 16... gxh5 {[%clk 0:01:42.1]}
17. a3 {[%clk 0:02:28.6]} 17... Bf6 {[%clk 0:01:32.6]} 18. Bxf6 {[%clk
0:02:09.7]} 18... Rxf6 {[%clk 0:01:33.5]} 19. b4 {[%clk 0:02:10.6]} 19... Nd7
{[%clk 0:01:21.9]} 20. Nb5 {[%clk 0:02:04.2]} 20... Rc8 {[%clk 0:01:08.4]} 21.
bxa5 {[%clk 0:02:04]} 21... bxa5 {[%clk 0:01:08.3]} 22. Nb3 {[%clk 0:02:04.3]}
22... a4 {[%clk 0:01:05]} 23. Na5 {[%clk 0:01:59.7]} 23... Nc5 {[%clk
0:00:57.7]} 24. Nxb7 {[%clk 0:01:58.6]} 24... Nxb7 {[%clk 0:00:58.6]} 25. Qxa4
{[%clk 0:01:56.9]} 25... Nc5 {[%clk 0:00:59.2]} 26. Qc2 {[%clk 0:01:53.9]} 26...
Qg6 {[%clk 0:00:56.8]} 27. Kh1 {[%clk 0:01:50.5]} 27... h4 {[%clk 0:00:53.4]}
28. a4 {[%clk 0:01:43.4]} 28... Kh8 {[%clk 0:00:49.6]} 29. a5 {[%clk 0:01:42.6]}
29... Rg8 {[%clk 0:00:49]} 30. Rg1 {[%clk 0:01:42.6]} 30... Qg7 {[%clk
0:00:48.8]} 31. f3 {[%clk 0:01:28.4]} 31... e4 {[%clk 0:00:37.1]} 32. f4 {[%clk
0:00:54.2]} 32... Qg3 {[%clk 0:00:35]} 33. Qc3 {[%clk 0:00:41.6]} 33... Rg6
{[%clk 0:00:23]} 34. Nxc7 {[%clk 0:00:31.7]} 34... Kh7 {[%clk 0:00:20.1]} 35. a6
{[%clk 0:00:21.2]} 35... Rf7 {[%clk 0:00:19.3]} 36. a7 {[%clk 0:00:18.2]} 36...
Nd3 {[%clk 0:00:17.3]} 37. Rxd3 {[%clk 0:00:17.4]} 37... exd3 {[%clk 0:00:17.5]}
38. a8=Q {[%clk 0:00:12.7]} 38... Rfg7 {[%clk 0:00:17.7]} 39. Qd2 {[%clk
0:00:07.7]} 39... Rxc7 {[%clk 0:00:11.5]} 40. Qaa2 {[%clk 0:00:07.1]} 40... Rcg7
{[%clk 0:00:10.6]} 41. Qf2 {[%clk 0:00:05.7]} 41... h5 {[%clk 0:00:06.6]} 42.
Qxg3 {[%clk 0:00:05.9]} 42... Rxg3 {[%clk 0:00:06.5]} 43. Qd2 {[%clk 0:00:06.3]}
43... Re7 {[%clk 0:00:05.9]} 44. Qxd3 {[%clk 0:00:06.3]} 44... Rgxe3 {[%clk
0:00:06.1]} 45. Qxf5+ {[%clk 0:00:06.4]} 45... Kh6 {[%clk 0:00:05.1]} 46. Qg5+
{[%clk 0:00:07.3]} 46... Kh7 {[%clk 0:00:05.4]} 47. Qxh5+ {[%clk 0:00:08.2]}
47... Kg7 {[%clk 0:00:06.3]} 48. Qg5+ {[%clk 0:00:08.2]} 48... Kf7 {[%clk
0:00:05.9]} 49. Qxh4 {[%clk 0:00:09.1]} 49... R3e4 {[%clk 0:00:05.7]} 50. Qh5+
{[%clk 0:00:09.2]} 50... Kf8 {[%clk 0:00:05.5]} 51. Qg5 {[%clk 0:00:10.1]} 51...
Ke8 {[%clk 0:00:05.3]} 52. c5 {[%clk 0:00:10.4]} 52... dxc5 {[%clk 0:00:04.8]}
53. d6 {[%clk 0:00:11.3]} 53... R7e6 {[%clk 0:00:03.9]} 54. f5 {[%clk
0:00:09.6]} 54... R6e5 {[%clk 0:00:03.2]} 55. Qg6+ {[%clk 0:00:07.5]} 55... Kd7
{[%clk 0:00:03.3]} 56. Rf1 {[%clk 0:00:07.9]} 56... c4 {[%clk 0:00:01.1]} 57. f6
{[%clk 0:00:07.9]} 1-0